bitfinex/quotes_ETHUSD_20230110
["timestamp","ask_amount","ask_price","bid_price","bid_amount"]
[1673317998155,28.93791911,1322.0,1321.9,7.57e-06]
[1673317998370,36.50220911,1322.0,1321.9,7.57e-06]
[1673318000939,10.16141336,1322.0,1321.9,7.57e-06]
[1673318001095,27.29653064,1322.0,1321.9,7.57e-06]
[1673318001305,4.60366064,1322.0,1321.9,7.57e-06]
[1673318001510,0.79,1322.0,1321.9,22.69458757]
[1673318001850,1.68650572,1322.1,1321.9,0.06600757]
[1673318002059,0.188,1322.0,1321.9,7.57e-06]
[1673318003015,0.238,1322.0,1321.9,7.57e-06]
[1673318003226,0.188,1322.0,1321.9,7.57e-06]
[1673318003685,7.75229,1322.0,1321.9,7.57e-06]
[1673318003866,7.76829,1322.0,1321.9,7.57e-06]
[1673318004287,11.56595064,1322.0,1321.9,7.57e-06]
[1673318004500,26.69453064,1322.0,1321.9,7.57e-06]
[1673318005218,30.46603385,1322.0,1321.9,7.57e-06]
[1673318005432,32.16303385,1322.0,1321.9,7.57e-06]
[1673318005654,32.39303385,1322.0,1321.9,7.57e-06]
[1673318005895,37.60094275,1322.0,1321.9,7.57e-06]
[1673318006738,41.16844275,1322.0,1321.9,7.57e-06]
[1673318007995,41.17053385,1322.0,1321.9,7.57e-06]
[1673318008181,56.84477278,1322.0,1321.9,7.57e-06]
[1673318008404,7.03,1321.9,1321.7,3.77e-06]
[1673318008594,47.03402064,1321.8,1321.7,3.77e-06]
[1673318008815,47.05002064,1321.8,1321.7,3.77e-06]
[1673318009016,43.78002064,1321.8,1321.7,3.77e-06]
[1673318009368,54.25889926,1321.8,1321.7,3.77e-06]
[1673318009854,50.75889926,1321.8,1321.7,3.77e-06]
[1673318010050,60.3857832,1321.8,1321.7,3.77e-06]
[1673318011936,56.8857832,1321.8,1321.7,3.77e-06]
[1673318012186,55.1897832,1321.8,1321.7,3.77e-06]
[1673318012404,58.6897832,1321.8,1321.7,3.77e-06]
[1673318012588,55.1897832,1321.8,1321.7,3.77e-06]
[1673318013045,58.6897832,1321.8,1321.7,3.77e-06]
[1673318013641,55.1897832,1321.8,1321.7,3.77e-06]
[1673318013858,58.6897832,1321.8,1321.7,3.77e-06]
[1673318014499,72.6897832,1321.8,1321.7,3.77e-06]
[1673318014848,74.4007832,1321.8,1321.7,3.77e-06]
[1673318015216,70.9007832,1321.8,1321.7,3.77e-06]
[1673318015429,56.9007832,1321.8,1321.7,3.77e-06]
[1673318015642,74.4007832,1321.8,1321.7,3.77e-06]
[1673318016485,85.4861553,1321.8,1321.5,13.85251]
[1673318016692,13.44966064,1321.6,1321.5,4.26788]
[1673318016935,38.1410927,1321.6,1321.4,0.066]
[1673318017151,38.1410927,1321.6,1321.3,0.7361004]
[1673318017152,20.26036064,1321.5,1321.3,0.7361004]
[1673318017342,29.89985064,1321.4,1321.3,0.7361004]
[1673318017553,30.72072926,1321.4,1321.3,0.7361004]
[1673318017905,38.48072926,1321.4,1321.3,0.7361004]
[1673318018082,46.64320776,1321.4,1321.3,0.7361004]
[1673318018894,43.14320776,1321.4,1321.3,0.7361004]
[1673318019107,20.44001776,1321.4,1321.3,0.7361004]
[1673318019334,26.30574776,1321.4,1321.3,0.7361004]
[1673318019543,33.87347776,1321.4,1321.3,0.7361004]
[1673318019830,32.24872926,1321.4,1321.3,0.7361004]
[1673318020101,0.194,1321.5,1321.4,4.50316357]
[1673318020319,0.194,1321.5,1321.4,2.00316357]
[1673318020484,0.194,1321.5,1321.4,17.13862357]
[1673318020693,0.194,1321.5,1321.4,17.20462357]
[1673318020905,21.2319,1322.0,1321.4,17.20462357]
[1673318020906,0.066,1322.0,1321.5,2.5]
[1673318021115,3.79766064,1321.9,1321.7,1.711]
[1673318021521,0.066,1322.0,1321.6,1.773]
[1673318021522,3.79766064,1321.8,1321.6,1.773]
[1673318021735,3.79766064,1321.8,1321.6,1.707]
[1673318022214,0.066,1321.9,1321.6,16.84011]
[1673318022383,3.79766064,1321.9,1321.6,19.410168]
[1673318022590,3.79766064,1321.9,1321.6,11.843588]
[1673318023566,3.79766064,1321.9,1321.6,4.277058]
[1673318023788,3.79766064,1321.9,1321.6,4.211058]
[1673318023994,3.79766064,1321.9,1321.6,11.777548]
[1673318024312,3.79766064,1321.9,1321.6,11.843548]
[1673318025248,3.79766064,1321.9,1321.6,19.410128]
[1673318026200,10.13034,1322.0,1321.6,19.410128]
[1673318026201,3.79766064,1321.8,1321.6,19.410128]
[1673318026516,7.56601,1321.7,1321.6,0.066]
[1673318026674,7.58201,1321.7,1321.5,2.2787]
[1673318027455,0.016,1321.7,1321.5,1.711]
[1673318027665,11.37934064,1321.8,1321.5,2.6026606]
[1673318027992,3.79766064,1321.7,1321.5,2.6026606]
[1673318028620,0.066,1321.8,1321.6,1.698]
[1673318028817,3.79766064,1321.8,1321.6,16.83057]
[1673318029139,3.79766064,1321.8,1321.6,16.89657]
[1673318029304,3.79766064,1321.8,1321.6,26.99868606]
[1673318029517,3.79373519,1321.8,1321.6,26.99868606]
[1673318030261,0.066,1321.9,1321.6,26.99868606]
[1673318030468,3.79766064,1321.9,1321.6,26.99868606]
[1673318034033,3.79766064,1321.9,1321.7,1.695]
[1673318034244,0.066,1322.0,1321.8,9.27644]
[1673318034501,1.68650572,1322.1,1321.9,16.84017]
[1673318034666,1.68850572,1322.1,1321.9,24.46903]
[1673318034874,1.68650572,1322.1,1321.9,16.90617]
[1673318035132,1.68650572,1322.1,1321.9,24.47103]
[1673318035294,1.68650572,1322.1,1321.9,27.845777]
[1673318036551,1.68650572,1322.1,1322.0,1.702]
[1673318036815,1.68650572,1322.1,1322.0,26.10087]
[1673318036985,1.68650572,1322.1,1322.0,28.44037]
[1673318037351,1.68650572,1322.1,1322.0,22.17408]
[1673318037570,1.68650572,1322.1,1322.0,24.23533962]
[1673318037713,1.68650572,1322.1,1322.0,22.52933962]
[1673318038458,1.68650572,1322.1,1322.0,14.96504962]
[1673318039003,1.68650572,1322.1,1322.0,22.52933962]
[1673318040353,1.68650572,1322.1,1322.0,31.80462962]
[1673318040548,1.01660572,1322.1,1322.0,31.80462962]
[1673318041203,1.01660572,1322.1,1322.0,24.24033962]
[1673318041414,1.01860572,1322.1,1322.0,24.23833962]
[1673318041599,1.01660572,1322.1,1322.0,24.24033962]
[1673318042864,1.01660572,1322.1,1322.0,16.67604962]
[1673318043071,19.94170636,1322.1,1322.0,0.066]
[1673318043279,27.52142636,1322.1,1321.8,2.2786]
[1673318043490,27.52142636,1322.1,1321.8,4.711]
[1673318043491,19.95770636,1322.1,1321.8,4.711]
[1673318043923,12.39398636,1322.1,1321.8,12.27639]
[1673318044153,1.03260572,1322.1,1321.9,1.711]
[1673318044330,1.01660572,1322.1,1321.9,2.918427]
[1673318044539,1.01660572,1322.1,1321.9,15.12941]
[1673318044804,1.01660572,1322.1,1321.9,7.63066]
[1673318045125,1.01660572,1322.1,1321.9,0.066]
[1673318045278,1.01660572,1322.1,1321.9,7.56481]
[1673318045487,1.01660572,1322.1,1321.9,7.63081]
[1673318046432,1.01660572,1322.1,1321.9,0.066]
[1673318046677,1.01660572,1322.1,1321.8,10.56523]
[1673318046678,8.58040572,1322.1,1321.8,3.066]
[1673318046903,8.59640572,1322.1,1321.8,3.0]
[1673318047271,8.59640572,1322.1,1321.8,10.56539]
[1673318047540,19.95786636,1322.1,1321.8,3.066]
[1673318047708,19.95786636,1322.1,1321.8,3.0]
[1673318048187,4.83026636,1322.1,1321.8,3.0]
[1673318048496,4.81426636,1322.1,1321.8,10.56515]
[1673318048676,4.81426636,1322.1,1321.8,10.63115]
[1673318048893,4.81426636,1322.1,1321.8,0.066]
[1673318048894,3.79766064,1322.0,1321.8,0.066]
[1673318049243,7.56544,1321.8,1321.7,0.066]
[1673318049395,7.56544,1321.8,1321.5,18.4154]
[1673318049396,3.81366064,1321.8,1321.5,10.3405]
[1673318049588,3.79766064,1321.8,1321.5,10.3405]
[1673318050015,3.79766064,1321.8,1321.5,17.90765]
[1673318050225,3.79766064,1321.8,1321.5,10.3405]
[1673318050468,3.79766064,1321.8,1321.5,20.88334636]
[1673318050791,0.05,1321.6,1321.5,20.88334636]
[1673318051019,22.23666064,1321.8,1321.5,16.31621636]
[1673318051361,3.79766064,1321.7,1321.5,0.066]
[1673318051481,26.49634064,1321.7,1321.4,5.06916357]
[1673318051843,26.51234064,1321.7,1321.4,5.06916357]
[1673318052161,3.79766064,1321.6,1321.4,2.06916357]
[1673318052370,11.36481064,1321.5,1321.4,2.00316357]
[1673318052560,3.81366064,1321.5,1321.4,2.00316357]
[1673318052777,3.79766064,1321.5,1321.4,2.00316357]
[1673318053316,11.36481064,1321.5,1321.4,2.00316357]
[1673318053646,11.38081064,1321.5,1321.4,2.00316357]
[1673318054894,26.51511064,1321.5,1321.4,2.00316357]
[1673318055051,30.1783057,1321.5,1321.4,2.00316357]
[1673318055265,3.81366064,1321.5,1321.4,2.00316357]
[1673318055514,3.79766064,1321.5,1321.4,2.00316357]
[1673318057215,0.066,1321.6,1321.4,2.00316357]
[1673318057379,3.79766064,1321.6,1321.4,24.70635357]
[1673318057589,0.066,1321.7,1321.4,29.95390997]
[1673318057829,7.58164,1321.8,1321.4,22.38617997]
[1673318058148,18.93037064,1321.7,1321.4,7.25071997]
[1673318058326,19.51397064,1321.7,1321.4,3.78016357]
[1673318058535,18.94637064,1321.7,1321.4,3.71416357]
[1673318058778,26.51288064,1321.7,1321.4,3.71416357]
[1673318060849,26.51288064,1321.7,1321.4,2.00316357]
[1673318061880,10.06664,1321.6,1321.4,2.00316357]
[1673318062091,10.08264,1321.6,1321.4,2.00316357]
[1673318062986,7.58264,1321.6,1321.4,2.00316357]
[1673318063144,3.79766064,1321.5,1321.4,2.00316357]
[1673318064239,11.36481064,1321.5,1321.4,2.00316357]
[1673318064575,11.38081064,1321.5,1321.4,2.00316357]
[1673318065496,3.81366064,1321.5,1321.4,2.00316357]
[1673318065730,3.79766064,1321.5,1321.4,2.00316357]
[1673318066367,0.6337,1321.6,1321.4,25.91428197]
[1673318066582,4.36536064,1321.6,1321.4,18.41255197]
[1673318066747,3.79766064,1321.6,1321.4,18.41255197]
[1673318068114,0.066,1321.7,1321.4,31.18919621]
[1673318068327,0.5676,1321.8,1321.4,30.50754917]
[1673318068543,1.69467031,1321.9,1321.4,31.19128197]
[1673318068860,5.49233095,1321.9,1321.4,30.50754917]
[1673318069218,13.07344095,1321.9,1321.4,20.12355197]
[1673318069523,13.07344095,1321.9,1321.4,27.69128197]
[1673318069753,6.29766064,1321.8,1321.4,7.80435917]
[1673318069895,3.79766064,1321.7,1321.4,3.78016357]
[1673318070320,3.79766064,1321.6,1321.4,2.00316357]
[1673318070490,4.36536064,1321.6,1321.4,2.00316357]
[1673318070664,3.79766064,1321.6,1321.4,2.00316357]
[1673318072236,3.79766064,1321.6,1321.4,17.13832357]
[1673318072453,0.066,1321.7,1321.4,28.43169597]
[1673318072808,0.066,1321.7,1321.4,20.86396597]
[1673318072809,3.79766064,1321.7,1321.4,20.86396597]
[1673318073308,3.79766064,1321.7,1321.4,13.29623597]
[1673318073309,11.36372064,1321.7,1321.4,13.29623597]
[1673318073484,26.51179064,1321.7,1321.4,5.72880597]
[1673318073786,18.94573064,1321.7,1321.4,5.72880597]
[1673318074276,1.252,1321.6,1321.4,13.29648597]
[1673318075110,1.252,1321.6,1321.4,5.72880597]
[1673318075744,1.252,1321.6,1321.4,4.0306049]
[1673318076054,1.252,1321.6,1321.4,3.9646049]
[1673318078526,3.79766064,1321.5,1321.4,1.9999625]
[1673318078737,5.50866064,1321.5,1321.4,1.9999625]
[1673318079067,26.51511064,1321.5,1321.4,1.9999625]
[1673318079265,27.08281064,1321.5,1321.4,1.9999625]
[1673318079479,30.97677699,1321.5,1321.4,1.9999625]
[1673318079691,24.5366973,1321.5,1321.4,1.9999625]
[1673318079921,32.1038473,1321.5,1321.4,1.9999625]
[1673318080322,24.5366973,1321.5,1321.4,1.9999625]
[1673318080661,9.4023973,1321.5,1321.4,1.9999625]
[1673318080878,5.50843095,1321.5,1321.4,1.9999625]
[1673318081036,20.07503095,1321.5,1321.4,1.9999625]
[1673318081512,20.64273095,1321.5,1321.4,1.9999625]
[1673318081679,19.51566064,1321.5,1321.4,1.9999625]
[1673318081880,27.08281064,1321.5,1321.4,1.9999625]
[1673318082135,30.22010099,1321.5,1321.4,1.9999625]
[1673318082362,29.65240099,1321.5,1321.4,1.9999625]
[1673318083193,30.22010099,1321.5,1321.4,1.9999625]
[1673318083512,38.66110099,1321.5,1321.4,1.9999625]
[1673318084026,38.66110099,1321.5,1321.3,0.7361004]
[1673318084187,6.06746064,1321.4,1321.3,0.7361004]
[1673318084397,32.65187074,1321.4,1321.3,0.7361004]
[1673318084609,41.08587074,1321.4,1321.3,0.7361004]
[1673318085212,41.84074936,1321.4,1321.3,0.7361004]
[1673318086754,45.77464023,1321.4,1321.3,0.7361004]
[1673318086954,43.52670259,1321.4,1321.3,0.7361004]
[1673318088169,12.6004601,1321.4,1321.3,0.7361004]
[1673318088374,19.9381901,1321.4,1321.3,0.7361004]
[1673318088802,27.5059201,1321.4,1321.3,0.7361004]
[1673318089253,35.0736501,1321.4,1321.3,0.7361004]
[1673318090230,27.5059201,1321.4,1321.3,0.7361004]
[1673318091070,27.51484585,1321.4,1321.3,0.7361004]
[1673318091417,38.71957585,1321.4,1321.3,0.7361004]
[1673318091598,41.52968736,1321.4,1321.3,0.7361004]
[1673318094682,39.28174972,1321.4,1321.3,0.7361004]
[1673318094856,41.52968736,1321.4,1321.3,0.7361004]
[1673318095203,39.84373413,1321.4,1321.3,0.7361004]
[1673318095521,42.65365617,1321.4,1321.3,0.7361004]
[1673318095696,46.15365617,1321.4,1321.3,0.7361004]
[1673318096316,43.90571853,1321.4,1321.3,0.7361004]
[1673318096872,46.14981466,1321.4,1321.3,0.7361004]
[1673318097688,43.90571853,1321.4,1321.3,0.7361004]
[1673318097954,1.48257272,1321.2,1321.1,0.22603786]
[1673318098157,1.48257272,1321.2,1321.1,7.86e-06]
[1673318098158,39.51079947,1321.2,1321.1,7.86e-06]
[1673318098321,49.90046426,1321.2,1321.1,7.86e-06]
[1673318098677,47.65662842,1321.2,1321.1,7.86e-06]
[1673318098853,47.09349898,1321.2,1321.1,7.86e-06]
[1673318099290,49.89829377,1321.2,1321.1,7.86e-06]
[1673318099531,47.65662842,1321.2,1321.1,7.86e-06]
[1673318101149,43.12197764,1321.2,1320.8,0.27903753]
[1673318101507,43.12197764,1321.2,1320.7,0.94815239]
[1673318101508,2.5,1320.8,1320.7,0.94815239]
[1673318101832,31.21514328,1320.8,1320.7,0.94815239]
[1673318102027,29.52714064,1320.8,1320.7,0.94815239]
[1673318102229,38.80930064,1320.8,1320.7,0.94815239]
[1673318102436,25.02667658,1320.8,1320.7,0.94815239]
[1673318102654,31.24706639,1320.8,1320.7,0.94815239]
[1673318103037,32.54606639,1320.8,1320.7,0.94815239]
[1673318103361,36.73165605,1320.8,1320.7,0.94815239]
[1673318104511,43.05742624,1320.8,1320.7,2.39e-06]
[1673318104713,7.03,1320.7,1320.6,0.99572628]
[1673318104978,45.39527059,1320.7,1320.6,6.28e-06]
[1673318105190,46.84998064,1320.7,1320.6,6.28e-06]
[1673318105345,49.44238718,1320.7,1320.6,6.28e-06]
[1673318105556,39.37064718,1320.7,1320.6,6.28e-06]
[1673318105788,37.66264718,1320.7,1320.6,6.28e-06]
[1673318106220,0.016,1320.7,1320.6,6.28e-06]
[1673318106441,1.349,1320.8,1320.6,2.50000628]
[1673318106442,1.299,1320.8,1320.6,2.50000628]
[1673318106629,5.09666064,1320.8,1320.6,6.28e-06]
[1673318106853,5.11266064,1320.8,1320.6,6.28e-06]
[1673318107236,1.315,1320.8,1320.6,2.00000628]
[1673318107442,1.299,1320.8,1320.6,3.13495191]
[1673318107799,1.299,1320.8,1320.6,1.13495191]
[1673318108073,1.299,1320.8,1320.6,6.28e-06]
[1673318108761,3.79766064,1320.7,1320.6,6.28e-06]
[1673318109074,1.933,1320.8,1320.6,6.28e-06]
[1673318109292,5.66466064,1320.8,1320.6,6.28e-06]
[1673318109446,5.11266064,1320.8,1320.6,6.28e-06]
[1673318110025,1.315,1320.8,1320.6,6.28e-06]
[1673318110240,1.299,1320.8,1320.6,6.28e-06]
[1673318110934,0.17165923,1320.8,1320.7,1.711]
[1673318111139,0.17165923,1320.8,1320.7,2.81043163]
[1673318111349,0.17165923,1320.8,1320.7,17.95391163]
[1673318111560,0.17165923,1320.8,1320.7,1.16543163]
[1673318111769,0.17165923,1320.8,1320.7,1.09943163]
[1673318112528,0.17165923,1320.8,1320.7,8.67117163]
[1673318112855,0.17165923,1320.8,1320.7,8.73717163]
[1673318113083,0.17165923,1320.8,1320.7,1.16543163]
[1673318113383,0.17165923,1320.8,1320.7,8.67117163]
[1673318113546,0.17165923,1320.8,1320.7,8.73717163]
[1673318114716,0.17365923,1320.8,1320.7,8.73517163]
[1673318114931,0.17165923,1320.8,1320.7,16.30891163]
[1673318115340,0.17165923,1320.8,1320.7,1.16543163]
[1673318115568,0.17165923,1320.8,1320.7,1.09943163]
[1673318115782,0.17165923,1320.8,1320.6,9.28327628]
[1673318116020,0.17165923,1320.8,1320.6,0.06600628]
[1673318116167,0.17165923,1320.8,1320.6,6.28e-06]
[1673318116168,19.11202987,1320.8,1320.6,6.28e-06]
[1673318116518,26.69953987,1320.8,1320.6,6.28e-06]
[1673318116706,19.12802987,1320.8,1320.6,6.28e-06]
[1673318116928,22.03082386,1320.8,1320.6,6.28e-06]
[1673318117342,3.98531987,1320.8,1320.6,6.28e-06]
[1673318117550,3.96931987,1320.8,1320.6,6.28e-06]
[1673318118399,3.97131987,1320.8,1320.6,6.28e-06]
[1673318118640,3.96931987,1320.8,1320.6,6.28e-06]
[1673318118955,26.68298987,1320.8,1320.6,6.28e-06]
[1673318119123,30.35974943,1320.8,1320.6,6.28e-06]
[1673318119354,22.78839943,1320.8,1320.6,6.28e-06]
[1673318119853,15.21723943,1320.8,1320.6,6.28e-06]
[1673318120066,22.78839943,1320.8,1320.6,6.28e-06]
[1673318121477,15.21723943,1320.8,1320.6,6.28e-06]
[1673318121870,30.35955943,1320.8,1320.6,6.28e-06]
[1673318122084,22.78839943,1320.8,1320.6,6.28e-06]
[1673318122495,23.35639943,1320.8,1320.6,6.28e-06]
[1673318122698,3.79766064,1320.7,1320.6,6.28e-06]
[1673318122910,30.71662058,1320.7,1320.6,6.28e-06]
[1673318123173,30.73262058,1320.7,1320.6,6.28e-06]
[1673318124202,23.16088058,1320.7,1320.6,6.28e-06]
[1673318124391,0.016,1320.7,1320.6,22.71693628]
[1673318124605,0.73965923,1320.8,1320.6,15.21062628]
[1673318124784,0.73965923,1320.8,1320.6,22.78293628]
[1673318124785,4.53731987,1320.8,1320.6,22.78293628]
[1673318126289,0.17165923,1320.8,1320.6,15.21062628]
[1673318126691,3.96931987,1320.8,1320.6,0.06600628]
[1673318126944,28.95089286,1320.8,1320.6,6.28e-06]
[1673318127113,28.96689286,1320.8,1320.6,6.28e-06]
[1673318127785,29.53489286,1320.8,1320.6,6.28e-06]
[1673318128676,30.65418281,1320.8,1320.6,6.28e-06]
[1673318128996,6.29766064,1320.7,1320.6,6.28e-06]
[1673318129208,32.69126662,1320.7,1320.6,6.28e-06]
[1673318129565,33.25936662,1320.7,1320.6,6.28e-06]
[1673318129988,30.75936662,1320.7,1320.6,6.28e-06]
[1673318130752,31.87865657,1320.7,1320.6,6.28e-06]
[1673318131135,31.87865657,1320.7,1320.6,0.05000628]
[1673318131491,31.31055657,1320.7,1320.6,0.05000628]
[1673318131680,15.15948,1320.7,1320.6,1.28000628]
[1673318131895,0.016,1320.7,1320.6,8.85231628]
[1673318132220,0.73965923,1320.8,1320.6,8.91831628]
[1673318132391,4.53731987,1320.8,1320.6,8.91831628]
[1673318132585,3.96931987,1320.8,1320.6,8.91831628]
[1673318132801,1.29094918,1320.8,1320.6,24.06293628]
[1673318133147,0.17165923,1320.8,1320.6,24.01293628]
[1673318134005,0.17165923,1320.8,1320.6,8.86831628]
[1673318134231,20.23143982,1320.8,1320.6,0.06600628]
[1673318134379,32.5664152,1320.8,1320.6,6.28e-06]
[1673318134835,31.9984152,1320.8,1320.6,6.28e-06]
[1673318135040,1.11928995,1320.7,1320.6,6.28e-06]
[1673318135898,0.00375664,1320.6,1320.5,0.066]
[1673318136112,0.00375664,1320.6,1320.5,7.57285]
[1673318136264,0.00375664,1320.6,1320.5,0.066]
[1673318136483,0.00375664,1320.6,1320.5,2.5]
[1673318137231,0.00375664,1320.6,1320.4,35.31686588]
[1673318137558,0.00375664,1320.6,1320.4,39.79543372]
[1673318138004,0.00375664,1320.6,1320.5,2.5]
[1673318138844,0.00375664,1320.6,1320.4,10.88642588]
[1673318139007,1.12304659,1320.6,1320.4,10.88642588]
[1673318139362,1.12304659,1320.6,1320.4,26.03331588]
[1673318139676,1.12304659,1320.6,1320.4,20.11999515]
[1673318140152,0.00375664,1320.6,1320.4,20.11999515]
[1673318140576,0.00375664,1320.6,1320.4,27.69345515]
[1673318140832,0.00375664,1320.6,1320.5,2.5]
[1673318141049,0.00375664,1320.6,1320.5,10.07288]
[1673318141211,0.00375664,1320.6,1320.5,21.18243663]
[1673318141416,0.00375664,1320.6,1320.5,28.75531663]
[1673318143519,0.00375664,1320.6,1320.5,13.60955663]
[1673318144579,0.00375664,1320.6,1320.5,3.53667663]
[1673318144902,0.00375664,1320.6,1320.5,5.97067663]
[1673318145109,0.00375664,1320.6,1320.5,13.55955663]
[1673318145313,0.00375664,1320.6,1320.5,11.05955663]
[1673318145839,0.00375664,1320.6,1320.5,18.63243663]
[1673318146214,0.00375664,1320.6,1320.5,11.05955663]
[1673318146383,0.00375664,1320.6,1320.5,7.63888]
[1673318146791,0.00375664,1320.6,1320.5,10.13888]
[1673318147120,0.00375664,1320.6,1320.5,15.21176]
[1673318149994,0.00375664,1320.6,1320.5,7.63888]
[1673318150574,1.12304659,1320.6,1320.5,0.066]
[1673318150785,1.12304659,1320.6,1320.4,17.16670588]
[1673318150993,0.00375664,1320.6,1320.4,9.59357588]
[1673318151202,1.12304659,1320.6,1320.4,9.59357588]
[1673318151873,1.12304659,1320.6,1320.4,20.86992662]
[1673318152090,1.12304659,1320.6,1320.4,5.72351662]
[1673318152301,1.12304659,1320.6,1320.4,4.02851662]
[1673318152530,1.12304659,1320.6,1320.4,0.25962588]
[1673318152843,1.12304659,1320.6,1320.4,7.83300588]
[1673318153066,1.12304659,1320.6,1320.4,7.89900588]
[1673318154951,2.80446604,1320.6,1320.4,7.89900588]
[1673318155971,2.80446604,1320.6,1320.4,0.32562588]
[1673318156181,1.11928995,1320.5,1320.4,0.25962588]
[1673318157164,2.87046604,1320.6,1320.4,0.25962588]
[1673318157337,1.11928995,1320.5,1320.4,0.25962588]
[1673318157552,2.80446604,1320.6,1320.4,0.25962588]
[1673318158209,2.80446604,1320.6,1320.4,7.83306588]
[1673318158448,1.12304659,1320.6,1320.4,7.89906588]
[1673318158599,2.80446604,1320.6,1320.4,7.89906588]
[1673318159017,2.80446604,1320.6,1320.4,2.89906588]
[1673318159259,2.80446604,1320.6,1320.4,2.83306588]
[1673318159482,2.80446604,1320.6,1320.4,5.20380762]
[1673318159763,1.11988514,1320.6,1320.4,2.89906588]
[1673318159970,1.11988514,1320.6,1320.4,2.83306588]
[1673318160187,1.11988514,1320.6,1320.4,19.69098588]
[1673318160405,1.11988514,1320.6,1320.4,19.75698588]
[1673318160606,1.12188514,1320.6,1320.4,19.75498588]
[1673318160848,1.11988514,1320.6,1320.4,22.88482962]
[1673318161272,2.80130459,1320.6,1320.4,15.31136962]
[1673318161503,1.11988514,1320.6,1320.4,15.31136962]
[1673318161690,2.80130459,1320.6,1320.4,15.31136962]
[1673318161912,1.11988514,1320.6,1320.4,15.31136962]
[1673318162734,8.69247514,1320.6,1320.4,1.777]
[1673318162937,10.38989459,1320.6,1320.4,1.711]
[1673318164804,10.38989459,1320.6,1320.3,13.3007415]
[1673318164965,10.38989459,1320.6,1320.4,1.87926099]
[1673318165176,17.59599052,1320.6,1320.4,1.87926099]
[1673318165440,7.17608009,1320.5,1320.3,0.066]
[1673318165597,23.84573725,1320.4,1320.2,10.2947]
[1673318165808,25.54977313,1320.4,1320.2,0.066]
[1673318166017,25.54977313,1320.4,1320.1,14.45212371]
[1673318166280,1.12535725,1320.3,1320.1,14.45212371]
[1673318166595,7.5746,1320.2,1320.1,0.066]
[1673318166753,0.016,1320.2,1320.0,49.05946046]
[1673318167115,25.57559725,1320.3,1320.0,49.05946046]
[1673318167328,25.57559725,1320.3,1320.0,40.03794794]
[1673318167539,29.19108989,1320.3,1320.0,40.03794794]
[1673318167772,21.61662989,1320.3,1320.0,40.03794794]
[1673318168060,14.04216989,1320.3,1320.0,40.03794794]
[1673318168276,14.04216989,1320.3,1320.0,63.89621046]
[1673318168277,0.016,1320.3,1320.0,63.89621046]
[1673318168508,4.53939313,1320.4,1320.0,63.89621046]
[1673318168650,4.52339313,1320.4,1320.0,63.89621046]
[1673318168859,4.53231888,1320.4,1320.0,63.89621046]
[1673318169072,2.82231888,1320.4,1320.0,73.14584597]
[1673318169390,1.134283,1320.4,1320.1,1.87957416]
[1673318169631,1.134283,1320.4,1320.2,7.5746]
[1673318169840,1.134283,1320.4,1320.2,0.066]
[1673318170176,10.00125725,1320.5,1320.2,22.7238]
[1673318170323,10.00125725,1320.5,1320.2,26.04207618]
[1673318170324,1.14135725,1320.5,1320.2,26.04207618]
[1673318170537,1.69355725,1320.5,1320.3,2.5]
[1673318171226,1.69355725,1320.5,1320.2,26.04177618]
[1673318171380,1.69355725,1320.5,1320.2,18.46717618]
[1673318172529,1.12535725,1320.5,1320.2,18.46717618]
[1673318172898,1.12535725,1320.5,1320.2,26.04177618]
[1673318173443,16.27115725,1320.5,1320.2,0.066]
[1673318173640,1.12535725,1320.4,1320.1,8.2808]
[1673318173797,7.57403,1320.3,1320.1,8.2808]
[1673318174010,7.59003,1320.3,1320.1,8.2808]
[1673318174219,15.16406,1320.3,1320.1,8.2808]
[1673318174543,8.8046,1320.2,1320.1,0.066]
[1673318174753,8.8046,1320.2,1320.0,30.34114794]
[1673318174754,1.246,1320.2,1320.0,30.34114794]
[1673318175001,1.23,1320.2,1320.0,53.06789794]
[1673318175161,1.75955725,1320.3,1320.2,1.12781669]
[1673318175377,12.72305313,1320.4,1320.2,1.12781669]
[1673318175583,14.76871377,1320.4,1320.2,1.12781669]
[1673318176475,12.49704789,1320.3,1320.2,1.12781669]
[1673318176631,13.98997627,1320.3,1320.2,1.12781669]
[1673318176846,22.13220627,1320.3,1320.2,1.12781669]
[1673318177087,14.55817627,1320.3,1320.2,1.12781669]
[1673318177306,13.43281902,1320.3,1320.2,1.12781669]
[1673318177695,21.00684902,1320.3,1320.2,1.12781669]
[1673318177904,13.43281902,1320.3,1320.2,1.12781669]
[1673318178489,31.41723627,1320.3,1320.2,1.12781669]
[1673318178673,33.10527215,1320.3,1320.2,1.12781669]
[1673318178888,33.64723627,1320.3,1320.2,1.12781669]
[1673318180522,33.07903627,1320.3,1320.2,1.12781669]
[1673318180985,10.35694627,1320.3,1320.2,1.12781669]
[1673318181149,9.00158902,1320.3,1320.2,1.12781669]
[1673318181356,24.14964902,1320.3,1320.2,1.12781669]
[1673318181564,14.86461902,1320.3,1320.2,1.12781669]
[1673318182023,22.43864902,1320.3,1320.2,1.12781669]
[1673318182563,30.01267902,1320.3,1320.2,1.12781669]
[1673318182724,30.58087902,1320.3,1320.2,1.12781669]
[1673318182934,30.01267902,1320.3,1320.2,1.12781669]
[1673318183147,31.13803627,1320.3,1320.2,1.12781669]
[1673318184114,31.13803627,1320.3,1320.2,1.12535973]
[1673318184324,32.83403627,1320.3,1320.2,1.12535973]
[1673318186231,33.40223627,1320.3,1320.2,1.12535973]
[1673318186449,27.74624215,1320.3,1320.2,1.12535973]
[1673318186628,33.63223627,1320.3,1320.2,1.12535973]
[1673318186834,26.05820627,1320.3,1320.2,1.12535973]
[1673318187093,33.40223627,1320.3,1320.2,1.12535973]
[1673318188245,25.82820627,1320.3,1320.2,1.12535973]
[1673318188833,18.25417627,1320.3,1320.2,1.12535973]
[1673318189360,25.82820627,1320.3,1320.2,1.12535973]
[1673318189572,18.25417627,1320.3,1320.2,1.12535973]
[1673318189832,10.68014627,1320.3,1320.2,1.12535973]
[1673318190023,2.016,1320.3,1320.2,1.12535973]
[1673318190237,2.0,1320.3,1320.1,15.21576]
[1673318190559,2.0,1320.3,1320.1,7.64083]
[1673318190714,9.57405,1320.3,1320.1,0.066]
[1673318190927,9.59005,1320.3,1320.0,37.91657794]
[1673318191138,9.59005,1320.3,1320.0,44.16118157]
[1673318191379,2.016,1320.3,1320.0,51.73693157]
[1673318191618,2.0,1320.3,1320.0,44.16118157]
[1673318191982,2.0,1320.3,1320.0,51.73693157]
[1673318193273,10.69947725,1320.3,1320.0,44.16118157]
[1673318193622,9.59012,1320.3,1320.0,44.16118157]
[1673318193778,2.016,1320.3,1320.0,44.16118157]
[1673318193977,2.0,1320.3,1320.0,44.16118157]
[1673318194342,9.57407,1320.3,1320.0,44.16118157]
[1673318194516,2.016,1320.3,1320.0,44.16118157]
[1673318194727,9.57409,1320.3,1320.0,36.58575157]
[1673318194938,17.16418,1320.3,1320.0,30.34114794]
[1673318195165,22.08719789,1320.3,1320.0,30.34114794]